bitfinex-derivatives/quotes_BTCF0:USTF0_20251230
["timestamp","ask_amount","ask_price","bid_price","bid_amount"]
[1767111966578,0.0112089,89312.0,89291.0,0.0112114]
[1767111967089,0.00016793,89310.0,89293.0,0.01137903]
[1767111967475,0.00016793,89310.0,89278.0,0.011213]
[1767111967682,0.0112099,89304.0,89271.0,0.0112139]
[1767111967980,0.0112099,89304.0,89268.0,0.09528]
[1767111967981,0.15208,89303.0,89268.0,0.09528]
[1767111968179,0.0112104,89300.0,89280.0,0.0112127]
[1767111968586,0.0112104,89300.0,89281.0,0.00016793]
[1767111968896,0.0112106,89297.0,89281.0,0.00016793]
[1767111969087,0.15208,89303.0,89282.0,0.0112125]
[1767111969288,0.011211,89295.0,89281.0,0.00016793]
[1767111969482,0.15208,89303.0,89281.0,0.00016793]
[1767111969483,0.0112112,89293.0,89281.0,0.00016793]
[1767111969685,0.0112107,89297.0,89281.0,0.00016793]
[1767111970084,0.15208,89303.0,89281.0,0.00016793]
[1767111970280,0.011211,89294.0,89281.0,0.00016793]
[1767111970485,0.0568,89293.0,89281.0,0.00016793]
[1767111972189,0.0112118,89288.0,89281.0,0.00016793]
[1767111972390,0.0112118,89288.0,89268.0,0.09528]
[1767111972897,0.0568,89293.0,89256.0,0.09528]
[1767111972898,0.0112137,89273.0,89256.0,0.09528]
[1767111973087,0.0568,89278.0,89239.0,0.09528]
[1767111973285,0.09528,89279.0,89250.0,0.00011228]
[1767111973286,0.011215,89263.0,89250.0,0.00011228]
[1767111973486,0.15224803,89267.0,89250.0,0.00011228]
[1767111973687,6e-08,89262.0,89250.0,0.00011228]
[1767111973887,0.09528,89267.0,89252.0,0.0112162]
[1767111974194,0.16586394,89300.0,89250.0,0.00011228]
[1767111974195,0.0112127,89281.0,89250.0,0.00011228]
[1767111974390,0.0112129,89279.0,89256.0,0.0112157]
[1767111974594,0.0112131,89277.0,89253.0,0.0112162]
[1767111974896,0.00016803,89274.0,89253.0,0.0112162]
[1767111975392,0.0112148,89265.0,89250.0,0.00011228]
[1767111976187,0.00016803,89274.0,89250.0,0.00011228]
[1767111976403,0.15208,89273.0,89250.0,0.00011228]
[1767111976591,0.15208,89273.0,89236.0,0.0112182]
[1767111976794,0.011215,89263.0,89238.0,0.011218]
[1767111976987,0.15208,89262.0,89214.0,0.00973666]
[1767111977182,0.09528,89261.0,89226.0,0.0112195]
[1767111977388,0.0112164,89252.0,89227.0,0.09528]
[1767111977590,0.00016803,89248.0,89231.0,0.00016803]
[1767111978497,0.00016803,89248.0,89238.0,0.0112179]
[1767111978898,0.00016803,89248.0,89234.0,0.0112185]
[1767111979100,0.00016803,89248.0,89218.0,0.09528]
[1767111979491,0.01138493,89248.0,89220.0,0.0112202]
[1767111979698,0.01138493,89248.0,89223.0,0.0112199]
[1767111979891,0.00016803,89248.0,89223.0,0.0112199]
[1767111980297,0.00016803,89248.0,89226.0,0.0112195]
[1767111980987,0.16586394,89240.0,89214.0,0.011221]
[1767111981294,0.0112178,89240.0,89214.0,0.011221]
[1767111981701,0.0112182,89237.0,89212.0,0.09532]
[1767111982000,0.0112186,89234.0,89212.0,0.09532]
[1767111982196,0.17708174,89240.0,89217.0,0.0112206]
[1767111982388,0.0112178,89240.0,89217.0,0.0112206]
[1767111982592,0.0568,89241.0,89217.0,0.0112206]
[1767111983194,0.0680177,89241.0,89217.0,0.0112206]
[1767111985100,0.0568,89241.0,89212.0,0.09532]
[1767111986006,0.0112178,89240.0,89199.0,0.01131778]
[1767111986307,0.09532,89242.0,89212.0,0.0112212]
[1767111986607,0.0568,89249.0,89213.0,0.15212]
[1767111987108,0.0568,89249.0,89226.0,0.0112195]
[1767111987296,0.00016812,89246.0,89229.0,0.00016812]
[1767111987496,0.0112172,89245.0,89229.0,0.00016812]
[1767111987898,0.0112172,89245.0,89226.0,0.09532]
[1767111988305,0.00016812,89246.0,89222.0,0.05684]
[1767111988505,0.00016812,89246.0,89211.0,0.0112214]
[1767111988506,0.0112183,89237.0,89211.0,0.0112214]
[1767111988807,0.0112183,89237.0,89213.0,0.0112212]
[1767111989007,0.16586394,89230.0,89162.0,0.07914238]
[1767111989305,0.00016812,89234.0,89144.0,1.55621888]
[1767111989306,0.16586394,89220.0,89190.0,0.09532]
[1767111989502,0.15216,89219.0,89190.0,0.09532]
[1767111989708,0.011221,89215.0,89190.0,0.09532]
[1767111989901,0.00016812,89216.0,89190.0,0.09532]
[1767111990104,0.00016812,89216.0,89193.0,0.0112236]
[1767111990305,0.00016812,89216.0,89191.0,0.0112238]
[1767111990606,0.15232812,89216.0,89198.0,0.011223]
[1767111991202,0.00016812,89216.0,89194.0,0.0112235]
[1767111991427,0.15216,89215.0,89197.0,0.0112232]
[1767111991934,0.00016812,89216.0,89197.0,0.0112232]
[1767111992135,0.05684,89215.0,89197.0,0.0112232]
[1767111992340,0.00016812,89216.0,89199.0,0.01131768]
[1767111992932,0.00016812,89216.0,89199.0,9.488e-05]
[1767111993132,0.00016812,89216.0,89199.0,0.01131768]
[1767111993334,0.00016812,89216.0,89203.0,0.0112224]
[1767111993523,0.0112192,89229.0,89206.0,0.011222]
[1767111993727,0.0112199,89223.0,89199.0,9.488e-05]
[1767111994037,0.09536,89223.0,89202.0,0.0112225]
[1767111994231,0.0112194,89227.0,89202.0,0.0112225]
[1767111994439,0.05684,89222.0,89206.0,0.00016812]
[1767111994736,0.16586394,89220.0,89199.0,9.488e-05]
[1767111994928,0.0112216,89210.0,89189.0,0.09536]
[1767111995238,0.0112211,89214.0,89191.0,0.0112239]
[1767111995541,0.0112206,89218.0,89194.0,0.0112236]
[1767111995724,0.1522,89219.0,89190.0,0.16586394]
[1767111995930,9.488e-05,89218.0,89189.0,0.09536]
[1767111996232,9.488e-05,89218.0,89204.0,0.0112223]
[1767111996427,9.488e-05,89218.0,89210.0,0.0112215]
[1767111996633,9.488e-05,89218.0,89200.0,0.09536]
[1767111996634,0.00016812,89223.0,89207.0,0.0112219]
[1767111997840,0.00016812,89223.0,89209.0,0.0112216]
[1767111998232,0.0112187,89233.0,89206.0,0.011222]
[1767111998429,0.0112189,89231.0,89206.0,0.011222]
[1767111998738,0.0112193,89229.0,89206.0,0.011222]
[1767111998926,0.1522,89232.0,89200.0,0.09536]
[1767111999131,0.0112203,89220.0,89200.0,0.09536]
[1767111999336,0.00016812,89219.0,89201.0,0.00016812]
[1767111999531,0.0112209,89216.0,89201.0,0.00016812]
[1767111999839,0.0112207,89217.0,89201.0,0.00016812]
[1767112001041,0.00016812,89219.0,89201.0,0.00016812]
[1767112001638,0.0823422,89218.0,89201.0,0.00016812]
[1767112001832,0.0112207,89217.0,89201.0,0.00016812]
[1767112002336,0.0255228,89216.0,89201.0,0.00016812]
[1767112002532,0.1522,89218.0,89202.0,0.0112226]
[1767112002842,0.0255228,89217.0,89201.0,0.01139082]
[1767112003034,0.0255228,89216.0,89201.0,0.01139082]
[1767112003234,0.1208828,89215.0,89201.0,0.01139082]
[1767112003437,0.00016812,89219.0,89201.0,0.00016812]
[1767112003640,2e-08,89219.0,89201.0,0.00016812]
[1767112003838,0.0112171,89246.0,89201.0,0.00016812]
[1767112003839,0.08024413,89245.0,89201.0,0.00016812]
[1767112004037,0.02553636,89244.0,89202.0,0.05684]
[1767112004237,0.02553636,89243.0,89225.0,0.0112196]
[1767112004545,0.08031879,89268.0,89233.0,0.0112186]
[1767112004746,0.1522,89267.0,89237.0,0.0112182]
[1767112004941,0.00016812,89261.0,89243.0,0.00016812]
[1767112005645,0.0112153,89260.0,89243.0,0.00016812]
[1767112006145,0.1522,89259.0,89243.0,0.00016812]
[1767112006344,0.0112156,89258.0,89243.0,0.00016812]
[1767112006545,0.011216,89254.0,89223.0,0.1065798]
[1767112006730,0.011216,89254.0,89223.0,0.09536]
[1767112007341,0.1522,89259.0,89223.0,0.1065798]
[1767112007539,0.0112155,89258.0,89232.0,0.00016812]
[1767112007935,0.1522,89259.0,89232.0,0.00016812]
[1767112008239,0.1522,89258.0,89232.0,0.00016812]
[1767112010047,0.1522,89258.0,89233.0,0.0112186]
[1767112010246,0.1522,89258.0,89232.0,0.00016812]
[1767112010247,0.00016812,89261.0,89240.0,0.0112177]
[1767112010542,0.05684,89257.0,89247.0,0.0112169]
[1767112010747,0.00016812,89261.0,89247.0,0.0112169]
[1767112010748,0.05700812,89261.0,89247.0,0.0112169]
[1767112010946,0.05700812,89261.0,89243.0,0.0112174]
[1767112011350,0.05700812,89261.0,89246.0,0.011217]
[1767112011843,0.05700812,89261.0,89235.0,0.05684]
[1767112012048,0.05700812,89261.0,89242.0,0.0112175]
[1767112012442,0.05700812,89261.0,89235.0,0.05684]
[1767112012847,0.0112125,89283.0,89241.0,0.0112176]
[1767112013048,0.011212,89287.0,89247.0,0.0112169]
[1767112013245,0.1522,89286.0,89248.0,0.09536]
[1767112013651,0.0112126,89282.0,89248.0,0.09536]
[1767112013844,0.00016812,89274.0,89256.0,0.00016812]
[1767112014445,0.0568,89279.0,89256.0,0.00016812]
[1767112015345,0.00016803,89276.0,89256.0,0.00016812]
[1767112019247,0.00016803,89276.0,89256.0,0.01138382]
[1767112019653,0.00016803,89276.0,89241.0,0.0112177]
[1767112019654,0.00016803,89276.0,89240.0,0.1065378]
[1767112019852,0.00016803,89276.0,89240.0,0.09532]
[1767112020054,0.0112148,89265.0,89240.0,0.09532]
[1767112020357,0.00016803,89276.0,89240.0,0.09532]
[1767112020358,0.0568,89267.0,89240.0,0.09532]
[1767112020558,0.0568,89267.0,89245.0,0.00016803]
[1767112021558,0.0112148,89264.0,89245.0,0.00016803]
[1767112022058,0.0112135,89275.0,89245.0,0.00016803]
[1767112022264,0.00016803,89276.0,89261.0,0.0112151]
[1767112022454,0.05316803,89276.0,89261.0,0.0112151]
[1767112022655,0.05696803,89276.0,89261.0,0.0112151]
[1767112023463,0.00016803,89276.0,89263.0,0.0112148]
[1767112023653,0.00016803,89276.0,89253.0,0.09532]
[1767112023654,0.00016803,89276.0,89257.0,0.0112156]
[1767112023859,0.00016803,89276.0,89254.0,0.011216]
[1767112024063,0.00016803,89276.0,89257.0,0.0112156]
[1767112024270,0.00016803,89276.0,89253.0,0.09532]
[1767112024454,0.0112172,89245.0,89212.0,0.00014031]
[1767112024761,0.0112162,89253.0,89214.0,0.011221]
[1767112024960,0.0112162,89253.0,89213.0,0.15212]
[1767112024961,0.10408,89267.0,89213.0,0.15212]
[1767112025176,0.10408,89268.0,89213.0,0.15212]
[1767112025460,0.0112169,89248.0,89232.0,0.00016803]
[1767112025660,0.0112179,89240.0,89232.0,0.00016803]
[1767112025865,0.0112174,89244.0,89232.0,0.09548803]
[1767112026171,0.00016803,89249.0,89232.0,0.09548803]
[1767112026364,0.00016803,89249.0,89233.0,0.09532]
[1767112026561,0.0112175,89243.0,89233.0,0.09532]
[1767112026861,0.0112175,89243.0,89231.0,0.09532003]
[1767112027062,0.0112171,89246.0,89231.0,0.09532003]
[1767112027455,0.00016803,89249.0,89231.0,0.09532003]
[1767112028067,0.00016803,89249.0,89212.0,0.00014031]
[1767112028265,0.0112175,89243.0,89213.0,0.01256]
[1767112028455,0.00016803,89249.0,89219.0,0.0112204]
[1767112028661,0.0112177,89242.0,89220.0,0.15212]
[1767112028964,0.00016803,89249.0,89221.0,0.0568]
[1767112029664,0.0112183,89236.0,89215.0,0.0112209]
[1767112029859,0.0112183,89236.0,89212.0,0.00014031]
[1767112029860,0.01099966,89249.0,89216.0,0.15212]
[1767112030260,0.0112183,89237.0,89216.0,0.15212]
[1767112030464,0.011219,89231.0,89217.0,0.0568]
[1767112030659,0.00016803,89249.0,89218.0,0.09532]
[1767112030872,0.0112168,89248.0,89226.0,0.0112195]
[1767112031064,0.00016803,89249.0,89229.0,0.0112191]
[1767112031266,0.00016803,89249.0,89230.0,0.09532]
[1767112031571,0.01138473,89249.0,89230.0,0.09532]
[1767112031866,0.00016803,89249.0,89230.0,0.09532]
[1767112032059,0.0112141,89270.0,89230.0,0.09532]
[1767112032264,0.0112148,89264.0,89242.0,0.0112175]
[1767112032464,0.09532,89273.0,89243.0,0.1128]
[1767112032774,0.02521606,89272.0,89243.0,0.1128]
[1767112032964,0.00016803,89266.0,89249.0,0.00016803]
[1767112033363,0.01138253,89266.0,89250.0,0.15212]
[1767112033666,0.00016803,89266.0,89250.0,0.15212]
[1767112037470,0.00016803,89266.0,89251.0,0.0112164]
[1767112037675,0.00016803,89266.0,89250.0,0.15212]
[1767112038376,0.00016803,89266.0,89250.0,0.1633365]
[1767112039567,0.00016803,89266.0,89253.0,0.0112162]
[1767112039776,0.00016803,89266.0,89250.0,0.15212]
[1767112040071,0.00016803,89266.0,89251.0,0.15212]
[1767112040272,0.0112161,89254.0,89248.0,0.07908522]
[1767112040476,0.0112161,89254.0,89233.0,0.0112187]
[1767112040680,0.09532,89269.0,89229.0,0.0112191]
[1767112040875,0.0112174,89243.0,89224.0,0.0112198]
[1767112041177,0.0112158,89256.0,89225.0,0.10408]
[1767112041376,0.00016803,89249.0,89226.0,0.09532]
[1767112042279,0.0112169,89248.0,89230.0,0.011219]
[1767112042577,0.00016803,89249.0,89227.0,0.0112194]
[1767112042777,0.00016803,89249.0,89226.0,0.09532]
[1767112043077,0.00016803,89249.0,89233.0,0.0112186]
[1767112043578,0.00016803,89249.0,89235.0,0.0112183]
[1767112044280,0.00016803,89249.0,89236.0,0.00548]
[1767112047784,0.01138473,89249.0,89236.0,0.00548]
[1767112049984,0.00016803,89249.0,89236.0,0.00548]
[1767112051675,0.0112149,89263.0,89236.0,0.00548]
[1767112051877,0.02526767,89262.0,89247.0,0.0112168]
[1767112052077,0.0112146,89266.0,89249.0,0.0112166]
[1767112052389,0.0112142,89269.0,89252.0,0.0112162]
[1767112052587,0.01138223,89269.0,89252.0,0.01138423]
[1767112052782,0.01138223,89269.0,89252.0,0.00016803]
[1767112052996,0.00016803,89269.0,89252.0,0.00016803]
[1767112053201,0.0112158,89256.0,89252.0,3e-08]
[1767112053374,0.00016803,89269.0,89252.0,3e-08]
[1767112053577,0.02524171,89268.0,89252.0,3e-08]
[1767112053888,0.0112146,89266.0,89252.0,3e-08]
[1767112054287,0.00016803,89269.0,89252.0,3e-08]
[1767112054482,0.0112144,89268.0,89252.0,3e-08]
[1767112055487,0.00016803,89269.0,89252.0,3e-08]
[1767112056479,0.01138223,89269.0,89252.0,3e-08]
[1767112056678,0.0112145,89267.0,89252.0,3e-08]
[1767112057086,0.00016803,89269.0,89252.0,3e-08]
[1767112057287,0.00016803,89269.0,89253.0,0.0112161]
[1767112057487,0.00016803,89269.0,89252.0,3e-08]
[1767112058488,0.0112136,89274.0,89255.0,0.0112158]
[1767112058690,0.02537793,89273.0,89257.0,0.0112155]
[1767112058893,0.09532,89280.0,89255.0,0.09532]
[1767112059082,0.0112135,89275.0,89255.0,0.1065358]
[1767112059391,0.0112131,89278.0,89255.0,0.1065358]
[1767112059590,0.00016803,89275.0,89255.0,0.1065358]
[1767112060285,0.00016803,89275.0,89257.0,0.0112156]
[1767112060490,0.00016803,89275.0,89255.0,0.09532]
[1767112061491,0.06187508,89289.0,89255.0,0.09532]
[1767112061793,0.0112121,89286.0,89265.0,0.0112145]
[1767112061995,0.0112123,89284.0,89265.0,0.0112145]
[1767112062288,0.0112123,89284.0,89261.0,0.011215]
[1767112062589,0.00016803,89281.0,89264.0,0.00016803]
[1767112063185,0.01138073,89281.0,89264.0,0.00016803]
[1767112064692,0.09532,89290.0,89265.0,0.09532]
[1767112065192,0.09532,89290.0,89270.0,0.011214]
[1767112065582,0.09532,89290.0,89265.0,0.09532]
[1767112065783,0.00016803,89286.0,89264.0,0.00016803]
[1767112066293,0.0112134,89275.0,89264.0,0.00016803]
[1767112067888,0.0112134,89275.0,89258.0,0.0112155]
[1767112068079,0.0112137,89273.0,89256.0,0.0112157]
[1767112068387,0.05676,89278.0,89251.0,0.05676]
[1767112068592,0.09532,89277.0,89251.0,0.05676]
[1767112068888,0.0112135,89275.0,89255.0,0.0112158]
[1767112069092,0.00016803,89273.0,89258.0,0.0112155]
[1767112069294,0.00016803,89273.0,89255.0,0.01138393]
[1767112069594,0.00016803,89273.0,89255.0,0.00016803]
[1767112070088,0.0112138,89272.0,89255.0,0.00016803]
[1767112070488,0.00016803,89273.0,89255.0,0.00016803]
[1767112070688,0.0112138,89272.0,89255.0,0.00016803]
[1767112071288,0.0112141,89270.0,89255.0,0.00016803]
[1767112071494,0.01138173,89273.0,89255.0,0.00016803]
[1767112071895,0.0112147,89265.0,89239.0,0.0112178]
[1767112072198,0.011215,89263.0,89241.0,0.0112176]
[1767112072385,0.011215,89263.0,89229.0,0.0112191]
[1767112072386,0.0112146,89266.0,89243.0,0.0112174]
[1767112072787,0.0112149,89264.0,89243.0,0.0112174]
[1767112072988,0.00016803,89263.0,89246.0,0.00016803]
[1767112073793,0.0112163,89253.0,89217.0,0.07910028]
[1767112074097,0.0112161,89254.0,89215.0,0.0112209]
[1767112074298,0.0112162,89253.0,89214.0,0.011221]
[1767112074494,0.011218,89239.0,89215.0,0.15208]
[1767112074693,0.011218,89239.0,89216.0,0.0112207]
[1767112074894,0.00016803,89236.0,89215.0,0.15208]
[1767112075094,0.00016803,89236.0,89224.0,0.0112198]
[1767112075290,0.00016803,89236.0,89225.0,0.15208]
[1767112075483,0.00016803,89236.0,89226.0,0.09532]
[1767112075893,0.00016803,89236.0,89226.0,0.1065395]
[1767112076396,0.00016803,89236.0,89226.0,0.09532]
[1767112076597,0.00016803,89236.0,89205.0,0.01121]
[1767112076598,0.00016803,89236.0,89218.0,0.0112205]
[1767112077093,0.00016803,89236.0,89215.0,0.15208]
[1767112077499,0.00016803,89236.0,89216.0,0.0112207]
[1767112077700,0.00016803,89236.0,89219.0,0.0112204]
[1767112078000,0.00016803,89236.0,89220.0,0.05676]
[1767112080697,0.0112173,89244.0,89220.0,0.05676]
[1767112081698,0.00016803,89241.0,89223.0,0.00016803]
[1767112081904,0.00016803,89241.0,89224.0,0.05676]
[1767112082292,0.01138573,89241.0,89224.0,0.05676]
[1767112082497,0.06158415,89255.0,89236.0,0.0112182]
[1767112082689,0.0112167,89249.0,89236.0,0.05676]
[1767112082893,0.09532,89261.0,89236.0,0.05676]
[1767112082894,0.0112163,89252.0,89236.0,0.05676]
[1767112083398,0.09532,89261.0,89230.0,0.0112189]
[1767112083702,0.0112162,89253.0,89237.0,0.00016803]
[1767112083896,0.00016803,89254.0,89237.0,0.00016803]
[1767112084292,0.0112154,89260.0,89237.0,0.00016803]
[1767112084598,0.16610972,89280.0,89237.0,0.00016803]
[1767112084897,0.0112148,89265.0,89237.0,0.00016803]
[1767112085088,0.0112148,89265.0,89242.0,0.0112174]
[1767112085294,0.00016803,89262.0,89243.0,0.05676]
[1767112085604,0.01138313,89262.0,89242.0,0.09532]
[1767112085794,0.00016803,89262.0,89243.0,0.0112173]
[1767112088002,0.0112142,89269.0,89242.0,0.09532]
[1767112088197,0.0112142,89269.0,89247.0,0.0112168]
[1767112088506,0.0112142,89269.0,89248.0,0.05676]
[1767112088803,0.0112142,89269.0,89249.0,0.0112166]
[1767112088996,0.00016803,89268.0,89249.0,0.0112166]
[1767112090393,0.0112145,89267.0,89246.0,0.011217]
[1767112090604,0.0112163,89252.0,89237.0,0.00016803]
[1767112090901,0.0112175,89243.0,89235.0,0.05676]
[1767112091205,0.15208,89264.0,89235.0,0.05676]
[1767112091404,0.15208,89264.0,89235.0,0.0679783]
[1767112091405,0.02534314,89263.0,89235.0,0.0679783]
[1767112091706,0.02534314,89262.0,89235.0,0.0679783]
[1767112092004,0.00016803,89257.0,89240.0,0.00016803]
[1767112093207,0.0112159,89255.0,89240.0,0.00016803]
[1767112094211,0.09532,89263.0,89249.0,0.0112167]
[1767112094506,0.09532,89263.0,89240.0,0.00016803]
[1767112095099,0.16610972,89270.0,89240.0,0.00016803]
[1767112095294,0.0112164,89252.0,89240.0,0.00016803]
[1767112095897,0.0112159,89256.0,89240.0,0.00016803]
[1767112096099,0.09532,89261.0,89240.0,0.00016803]
[1767112096909,0.0112164,89252.0,89240.0,0.00016803]
[1767112097101,0.0112166,89250.0,89240.0,0.00016803]
[1767112098104,0.09532,89261.0,89240.0,0.00016803]
[1767112098105,0.0112169,89248.0,89240.0,0.00016803]
[1767112098300,0.09532,89261.0,89240.0,0.00016803]
[1767112098510,0.0112173,89245.0,89240.0,3e-08]
[1767112099000,0.0112175,89243.0,89240.0,3e-08]
[1767112100307,0.0112171,89246.0,89240.0,3e-08]
[1767112101116,0.0112176,89242.0,89240.0,3e-08]
[1767112102521,0.0112171,89246.0,89240.0,3e-08]
[1767112103323,0.09532,89247.0,89240.0,3e-08]
[1767112103914,0.0112174,89244.0,89240.0,3e-08]
[1767112105317,0.0112174,89244.0,89226.0,0.00941953]
[1767112106119,0.0112174,89244.0,89226.0,0.00016803]
[1767112106120,3e-08,89244.0,89226.0,0.00016803]
[1767112106318,0.05676,89257.0,89230.0,0.16610972]
[1767112106516,0.05676,89257.0,89230.0,0.011219]
[1767112106727,0.05676,89257.0,89229.0,0.0112191]
[1767112106922,0.0112169,89247.0,89229.0,0.0112191]
[1767112107118,0.0112166,89250.0,89231.0,0.0112189]
[1767112107323,0.00016803,89249.0,89232.0,0.00016803]
[1767112109228,0.05676,89248.0,89233.0,0.0112187]
[1767112110537,0.05676,89248.0,89232.0,0.00016803]
[1767112111035,0.0679769,89248.0,89232.0,0.00016803]
[1767112111239,0.05676,89248.0,89232.0,0.00016803]
[1767112111440,0.0112178,89240.0,89232.0,0.00016803]
[1767112111639,0.05676,89248.0,89232.0,0.00016803]
[1767112111640,0.011217,89247.0,89232.0,3e-08]
[1767112111937,0.011218,89239.0,89232.0,3e-08]
[1767112112529,0.0112176,89242.0,89232.0,3e-08]
[1767112112932,0.15208,89248.0,89232.0,3e-08]
[1767112113328,0.0112179,89240.0,89232.0,3e-08]
[1767112113532,0.05676,89239.0,89232.0,3e-08]
[1767112114338,0.00016803,89249.0,89232.0,3e-08]
[1767112114538,0.011217,89247.0,89232.0,3e-08]
[1767112115036,0.15208,89246.0,89232.0,3e-08]
[1767112115745,0.011217,89247.0,89232.0,3e-08]
[1767112116041,0.15208,89246.0,89232.0,3e-08]
[1767112116234,0.011217,89247.0,89232.0,3e-08]
[1767112116434,0.15208,89246.0,89232.0,3e-08]
[1767112116844,0.1632971,89246.0,89232.0,3e-08]
[1767112117437,0.15208,89246.0,89232.0,3e-08]
[1767112118329,0.0112175,89243.0,89232.0,3e-08]
[1767112121343,0.0112176,89242.0,89232.0,3e-08]
[1767112121641,0.0112178,89240.0,89232.0,3e-08]
[1767112121839,0.0112189,89232.0,89212.0,0.01136161]
[1767112122038,0.05676,89239.0,89212.0,0.01136161]
[1767112122039,0.0112199,89224.0,89212.0,0.00014031]
[1767112122239,0.0112195,89227.0,89212.0,0.00014031]
[1767112122436,0.16610972,89242.0,89212.0,0.00014031]
[1767112122437,0.10025884,89263.0,89224.0,0.0112197]
[1767112122642,0.10025884,89263.0,89212.0,0.00014031]
[1767112122643,0.02554297,89256.0,89230.0,0.16610972]
[1767112122939,3e-08,89252.0,89249.0,0.0112166]
[1767112123141,0.0112138,89272.0,89249.0,0.1065766]
[1767112123340,0.0112141,89270.0,89249.0,0.09536]
[1767112123645,0.0112144,89268.0,89249.0,0.09536]
[1767112124145,0.00016813,89267.0,89250.0,0.00016813]
[1767112127252,0.00016813,89267.0,89256.0,0.0112158]
[1767112127544,0.05676,89300.0,89250.0,0.00016813]
[1767112127545,0.05676,89300.0,89260.0,0.0112153]
[1767112127747,0.0112116,89290.0,89263.0,0.0112148]
[1767112128339,0.00016802,89285.0,89268.0,0.00016802]
[1767112129244,0.0112124,89284.0,89268.0,0.00016802]
[1767112129446,0.00016802,89285.0,89268.0,0.00016802]
[1767112129844,0.0112123,89284.0,89268.0,0.00016802]
[1767112132343,0.0112127,89281.0,89265.0,0.09532]
[1767112132851,0.00016802,89285.0,89265.0,0.09532]
[1767112133352,0.0112123,89284.0,89266.0,0.00016802]
[1767112133542,0.0112128,89280.0,89266.0,0.00016802]
[1767112134446,0.0112128,89280.0,89253.0,0.0112162]
[1767112134650,0.0112132,89277.0,89256.0,0.0112157]
[1767112134949,0.0112127,89281.0,89256.0,0.0112157]
[1767112135246,0.0112131,89278.0,89256.0,0.0112157]
[1767112135452,0.00016802,89276.0,89258.0,0.00016802]
[1767112136843,0.00016802,89276.0,89260.0,0.0112152]
[1767112137548,0.00016802,89276.0,89258.0,0.00016802]
[1767112137744,0.00016802,89276.0,89273.0,0.0112136]
[1767112137745,2e-08,89276.0,89273.0,0.0112136]
[1767112137945,2e-08,89276.0,89260.0,0.16610972]
[1767112137946,0.09532,89291.0,89276.0,0.0112131]
[1767112138145,0.09532,89296.0,89276.0,0.0112131]
[1767112138848,0.00016802,89295.0,89278.0,0.0112129]
[1767112139447,0.0112111,89294.0,89277.0,0.00016802]
[1767112139953,0.0112114,89291.0,89277.0,0.00016802]
[1767112140255,0.01137902,89295.0,89277.0,0.00016802]
[1767112140450,0.00016802,89295.0,89277.0,0.00016802]
[1767112140947,0.0112118,89288.0,89244.0,0.00407565]
[1767112141149,0.09532,89290.0,89246.0,0.15204]
[1767112141356,0.0112141,89270.0,89249.0,0.0112166]
[1767112141560,0.0112138,89272.0,89250.0,0.09532]
[1767112141852,0.0112138,89272.0,89251.0,0.0112164]
[1767112142055,0.0112117,89289.0,89253.0,0.00016802]
[1767112142258,0.0112117,89289.0,89254.0,0.0112159]
[1767112143158,0.09532,89290.0,89253.0,0.00016802]
[1767112143159,0.0112143,89269.0,89253.0,0.00016802]
[1767112143358,0.09532,89278.0,89253.0,0.00016802]
[1767112143550,0.0112138,89272.0,89253.0,0.00016802]
[1767112143756,0.09532,89278.0,89253.0,0.00016802]
[1767112144051,0.0112137,89273.0,89253.0,0.00016802]
[1767112145755,0.09532,89278.0,89253.0,0.00016802]
[1767112146253,0.0112151,89262.0,89253.0,0.00016802]
[1767112146757,0.0112151,89262.0,89245.0,0.05672]
[1767112147055,0.0112151,89262.0,89246.0,0.011217]
[1767112147246,0.0112151,89262.0,89245.0,0.05672]
[1767112147851,0.01138312,89262.0,89245.0,0.05688802]
[1767112148051,0.01138312,89262.0,89245.0,0.06810512]
[1767112150254,0.00016802,89262.0,89245.0,0.05688802]
[1767112150760,0.0112152,89261.0,89245.0,0.05688802]
[1767112150960,0.00016802,89262.0,89245.0,0.05688802]
[1767112151153,0.0112152,89261.0,89245.0,0.05688802]
[1767112151459,0.00016802,89262.0,89245.0,0.05688802]
[1767112151954,0.00016802,89262.0,89245.0,2e-08]
[1767112152350,0.0112161,89254.0,89245.0,2e-08]
[1767112152659,0.1065361,89254.0,89245.0,2e-08]
[1767112154654,0.05672,89253.0,89208.0,0.0112217]
[1767112154859,0.0112175,89243.0,89215.0,0.15204]
[1767112155060,0.05672,89253.0,89215.0,0.15204]
[1767112155363,0.09532,89252.0,89227.0,0.0112194]
[1767112155562,0.09532,89252.0,89228.0,0.05672]
[1767112155764,0.00016802,89249.0,89231.0,0.00016802]
[1767112156452,2e-08,89249.0,89245.0,0.0112172]
[1767112156653,0.0112147,89265.0,89245.0,0.0112172]
[1767112156853,0.02571082,89264.0,89239.0,0.09532]
[1767112157053,0.02571082,89263.0,89239.0,0.09532]
[1767112157257,0.09532,89265.0,89239.0,0.09532]
[1767112157461,0.011215,89263.0,89243.0,0.0112173]
[1767112157657,0.00016802,89262.0,89243.0,0.0112173]
[1767112158162,0.00016802,89262.0,89246.0,0.011217]
[1767112159867,0.00016802,89262.0,89239.0,0.09532]
[1767112160162,0.00016802,89262.0,89247.0,0.0112168]
[1767112163170,0.00016802,89262.0,89239.0,0.0945368]
[1767112164258,0.00016802,89262.0,89247.0,0.0112168]
[1767112166772,0.00016802,89262.0,89243.0,0.0112174]
[1767112167365,0.00016802,89262.0,89240.0,0.0112178]
[1767112167567,0.01138312,89262.0,89242.0,0.0112175]
[1767112168170,0.00016802,89262.0,89244.0,0.0112172]
[1767112168370,0.01138312,89262.0,89243.0,0.0112173]
[1767112170158,0.01138312,89262.0,89239.0,0.0945368]
[1767112170362,0.01138312,89262.0,89239.0,0.0887541]
[1767112170567,0.00016802,89262.0,89236.0,0.0112182]
[1767112170767,0.00016802,89262.0,89235.0,0.0112183]
[1767112171365,0.0112155,89259.0,89231.0,0.00016802]
[1767112171677,0.011217,89247.0,89231.0,0.00016802]
[1767112173976,0.0112173,89244.0,89231.0,0.00016802]
[1767112174173,0.0112173,89244.0,89223.0,0.0112199]
[1767112174174,0.0112184,89236.0,89217.0,0.09532]
[1767112174373,0.0112182,89237.0,89217.0,0.09532]
[1767112174577,0.0112182,89237.0,89219.0,0.0112204]
[1767112175268,0.01138622,89237.0,89219.0,0.01138842]
[1767112175776,0.0112185,89235.0,89219.0,0.00016802]
[1767112178272,0.0112188,89232.0,89219.0,0.00016802]
[1767112178473,0.00016802,89237.0,89219.0,2e-08]
[1767112178673,0.0112191,89230.0,89219.0,2e-08]
[1767112178876,0.0112187,89233.0,89219.0,2e-08]
[1767112179279,0.00016802,89237.0,89219.0,2e-08]
[1767112179772,0.00016802,89237.0,89226.0,0.0112195]
[1767112180174,0.00016802,89237.0,89223.0,0.0112199]
[1767112182079,0.09532,89251.0,89235.0,0.0112183]